[Event "Late-Titled-Tuesday-Blitz-September-12-2023"]
[Site "Chess.com"]
[Date "2023.09.12"]
[Round "8"]
[White "MathiasCasalaspro"]
[Black "Nigerianprodigy"]
[Result "1-0"]
[WhiteElo "2282"]
[BlackElo "2370"]
[TimeControl "180+1"]
[EndTime "15:23:03 PDT"]
[Termination "MathiasCasalaspro won on time"]

1. e4 {[%clk 0:03:00.9]} 1... c5 {[%clk 0:02:58.4]} 2. Nf3 {[%clk 0:03:00.4]}
2... d6 {[%clk 0:02:58.5]} 3. d4 {[%clk 0:03:00.2]} 3... cxd4 {[%clk 0:02:59.1]}
4. Qxd4 {[%clk 0:03:01.1]} 4... Nc6 {[%clk 0:02:55.5]} 5. Bb5 {[%clk 0:03:00.4]}
5... Bd7 {[%clk 0:02:55.4]} 6. Bxc6 {[%clk 0:03:00.7]} 6... Bxc6 {[%clk
0:02:56.3]} 7. c4 {[%clk 0:03:00.5]} 7... Nf6 {[%clk 0:02:56]} 8. Nc3 {[%clk
0:03:00.8]} 8... g6 {[%clk 0:02:55.7]} 9. Be3 {[%clk 0:02:55.4]} 9... Bg7 {[%clk
0:02:55.3]} 10. Qd3 {[%clk 0:02:55.3]} 10... O-O {[%clk 0:02:51.8]} 11. O-O
{[%clk 0:02:54.3]} 11... a6 {[%clk 0:02:45.4]} 12. Rad1 {[%clk 0:02:50.9]} 12...
b5 {[%clk 0:02:44.9]} 13. cxb5 {[%clk 0:02:43.6]} 13... axb5 {[%clk 0:02:45.8]}
14. e5 {[%clk 0:02:34]} 14... Ng4 {[%clk 0:02:07.5]} 15. exd6 {[%clk 0:02:24.2]}
15... Bxf3 {[%clk 0:01:59.2]} 16. dxe7 {[%clk 0:02:10.4]} 16... Qxe7 {[%clk
0:01:50.2]} 17. gxf3 {[%clk 0:02:10.5]} 17... Ne5 {[%clk 0:01:43.6]} 18. Qe4
{[%clk 0:01:46.5]} 18... Qf6 {[%clk 0:01:27.1]} 19. f4 {[%clk 0:01:33.6]} 19...
Ng4 {[%clk 0:01:25]} 20. h3 {[%clk 0:01:28.6]} 20... Rfe8 {[%clk 0:01:12.4]} 21.
Qf3 {[%clk 0:01:15.3]} 21... Nxe3 {[%clk 0:01:01.5]} 22. fxe3 {[%clk 0:01:16.2]}
22... b4 {[%clk 0:01:00.4]} 23. Nd5 {[%clk 0:01:14.7]} 23... Qxb2 {[%clk
0:00:34]} 24. Rf2 {[%clk 0:01:11.7]} 24... Qa3 {[%clk 0:00:32.1]} 25. Nc7 {[%clk
0:01:07.6]} 25... Rac8 {[%clk 0:00:11.3]} 26. Nxe8 {[%clk 0:01:07]} 26... Rxe8
{[%clk 0:00:12.2]} 27. Re2 {[%clk 0:00:58.8]} 27... b3 {[%clk 0:00:10.6]} 28.
axb3 {[%clk 0:00:56.5]} 28... Qxb3 {[%clk 0:00:11.5]} 29. Rde1 {[%clk
0:00:50.8]} 29... Bc3 {[%clk 0:00:10.3]} 30. Rf1 {[%clk 0:00:48.5]} 30... Qc4
{[%clk 0:00:08]} 31. Rff2 {[%clk 0:00:44.9]} 31... Qd3 {[%clk 0:00:06.7]} 32.
Kg2 {[%clk 0:00:43.1]} 32... Bf6 {[%clk 0:00:04.2]} 33. e4 {[%clk 0:00:42.7]}
33... Qd7 {[%clk 0:00:03.3]} 34. Qg4 {[%clk 0:00:36.4]} 1-0

[Event "Late-Titled-Tuesday-Blitz-September-12-2023"]
[Site "Chess.com"]
[Date "2023.09.12"]
[Round "8"]
[White "a-z30"]
[Black "FredddieCroderg"]
[Result "1-0"]
[WhiteElo "2413"]
[BlackElo "2323"]
[TimeControl "180+1"]
[EndTime "15:23:04 PDT"]
[Termination "a-z30 won by resignation"]

1. d3 {[%clk 0:02:56.8]} 1... d6 {[%clk 0:02:56.5]} 2. Nf3 {[%clk 0:02:57.7]}
2... e5 {[%clk 0:02:52.8]} 3. g3 {[%clk 0:02:58]} 3... f5 {[%clk 0:02:45.6]} 4.
Bg2 {[%clk 0:02:58]} 4... Nf6 {[%clk 0:02:45.5]} 5. O-O {[%clk 0:02:58.2]} 5...
Be7 {[%clk 0:02:45.4]} 6. c4 {[%clk 0:02:58.8]} 6... O-O {[%clk 0:02:45.3]} 7.
Nc3 {[%clk 0:02:59.4]} 7... Kh8 {[%clk 0:02:43.7]} 8. b3 {[%clk 0:02:59.7]} 8...
Nc6 {[%clk 0:02:29.5]} 9. Bb2 {[%clk 0:02:59.6]} 9... f4 {[%clk 0:02:29.9]} 10.
e3 {[%clk 0:02:57.9]} 10... Qe8 {[%clk 0:02:23.2]} 11. exf4 {[%clk 0:02:56.4]}
11... exf4 {[%clk 0:02:22.2]} 12. Nd5 {[%clk 0:02:50.4]} 12... Qh5 {[%clk
0:01:54.9]} 13. Nxe7 {[%clk 0:02:34.6]} 13... Nxe7 {[%clk 0:01:53]} 14. Bxf6
{[%clk 0:02:33.6]} 14... Rxf6 {[%clk 0:01:51.8]} 15. Nd4 {[%clk 0:02:28.3]}
15... Bg4 {[%clk 0:01:49]} 16. Qd2 {[%clk 0:01:29.5]} 16... f3 {[%clk
0:01:43.9]} 17. Bh1 {[%clk 0:01:27.2]} 17... Raf8 {[%clk 0:01:24.9]} 18. Rfe1
{[%clk 0:01:25.9]} 18... Rh6 {[%clk 0:01:25.4]} 19. h4 {[%clk 0:01:25.1]} 19...
Ng6 {[%clk 0:01:25.7]} 20. Qg5 {[%clk 0:01:21.6]} 20... Qxg5 {[%clk 0:00:57]}
21. hxg5 {[%clk 0:01:21.2]} 21... Rh5 {[%clk 0:00:56]} 22. Re3 {[%clk
0:01:21.3]} 22... Ne5 {[%clk 0:00:51.3]} 23. Rae1 {[%clk 0:00:40.9]} 23... Rxg5
{[%clk 0:00:48.5]} 24. Nxf3 {[%clk 0:00:39.8]} 24... Nxf3+ {[%clk 0:00:46.3]}
25. Bxf3 {[%clk 0:00:39]} 25... h5 {[%clk 0:00:39.9]} 26. Bxb7 {[%clk
0:00:32.7]} 26... Rgf5 {[%clk 0:00:36.3]} 27. f4 {[%clk 0:00:29.3]} 27... R5f7
{[%clk 0:00:31.4]} 28. Re8 {[%clk 0:00:28.7]} 28... Kh7 {[%clk 0:00:30.7]} 29.
Rxf8 {[%clk 0:00:28.6]} 29... Rxf8 {[%clk 0:00:31.6]} 30. Re7 {[%clk 0:00:28.4]}
30... h4 {[%clk 0:00:25.3]} 31. Kh2 {[%clk 0:00:28.1]} 31... h3 {[%clk 0:00:25]}
32. Be4+ {[%clk 0:00:19.9]} 32... Kh6 {[%clk 0:00:22.6]} 33. Rxc7 {[%clk
0:00:20]} 33... g6 {[%clk 0:00:18.5]} 34. Rxa7 {[%clk 0:00:19.1]} 34... Bf5
{[%clk 0:00:18.5]} 35. Bxf5 {[%clk 0:00:17.9]} 35... gxf5 {[%clk 0:00:19.4]} 36.
Kxh3 {[%clk 0:00:18.1]} 36... Re8 {[%clk 0:00:20]} 37. Ra6 {[%clk 0:00:15.6]}
37... Re3 {[%clk 0:00:20.1]} 1-0

[Event "Late-Titled-Tuesday-Blitz-September-12-2023"]
[Site "Chess.com"]
[Date "2023.09.12"]
[Round "8"]
[White "SaqoChess_Twitch"]
[Black "becemix"]
[Result "0-1"]
[WhiteElo "2699"]
[BlackElo "2547"]
[TimeControl "180+1"]
[EndTime "15:23:09 PDT"]
[Termination "becemix won by checkmate"]

1. d4 {[%clk 0:03:00.9]} 1... d5 {[%clk 0:02:56.4]} 2. c4 {[%clk 0:03:01.3]}
2... e6 {[%clk 0:02:50.7]} 3. Nc3 {[%clk 0:03:01.3]} 3... c6 {[%clk 0:02:43.7]}
4. e3 {[%clk 0:03:01.3]} 4... Nf6 {[%clk 0:02:20.1]} 5. Nf3 {[%clk 0:03:00.4]}
5... Nbd7 {[%clk 0:02:13.3]} 6. Bd3 {[%clk 0:03:00.5]} 6... dxc4 {[%clk
0:02:05.1]} 7. Bxc4 {[%clk 0:03:00.7]} 7... Bd6 {[%clk 0:01:59.4]} 8. O-O {[%clk
0:03:00.3]} 8... O-O {[%clk 0:01:59.1]} 9. e4 {[%clk 0:03:00.9]} 9... e5 {[%clk
0:01:58.8]} 10. Bg5 {[%clk 0:02:53.5]} 10... h6 {[%clk 0:01:58]} 11. Bh4 {[%clk
0:02:53.7]} 11... Qe7 {[%clk 0:01:55.3]} 12. Bg3 {[%clk 0:02:48.1]} 12... exd4
{[%clk 0:01:38.1]} 13. Qxd4 {[%clk 0:02:36.5]} 13... Bxg3 {[%clk 0:01:28.1]} 14.
hxg3 {[%clk 0:02:37.4]} 14... Ng4 {[%clk 0:01:28.2]} 15. Rad1 {[%clk 0:02:34.5]}
15... Nge5 {[%clk 0:01:25.6]} 16. Nxe5 {[%clk 0:02:33.6]} 16... Nxe5 {[%clk
0:01:26.5]} 17. Be2 {[%clk 0:02:34.1]} 17... Ng6 {[%clk 0:00:44.1]} 18. f4
{[%clk 0:02:33.4]} 18... Re8 {[%clk 0:00:42.4]} 19. e5 {[%clk 0:02:33.2]} 19...
Nf8 {[%clk 0:00:37.6]} 20. Bc4 {[%clk 0:02:31.7]} 20... Be6 {[%clk 0:00:37.4]}
21. Bxe6 {[%clk 0:02:28.9]} 21... Nxe6 {[%clk 0:00:36.8]} 22. Qd6 {[%clk
0:02:29.4]} 22... Qxd6 {[%clk 0:00:36.9]} 23. Rxd6 {[%clk 0:02:29]} 23... Red8
{[%clk 0:00:36.9]} 24. Rfd1 {[%clk 0:02:28.9]} 24... Rxd6 {[%clk 0:00:36.8]} 25.
Rxd6 {[%clk 0:02:29.8]} 25... Rd8 {[%clk 0:00:37]} 26. Ne4 {[%clk 0:02:30.4]}
26... Rxd6 {[%clk 0:00:34.4]} 27. Nxd6 {[%clk 0:02:31.3]} 27... Nd8 {[%clk
0:00:34.7]} 28. Kf2 {[%clk 0:02:31.2]} 28... Kf8 {[%clk 0:00:35.1]} 29. Ke3
{[%clk 0:02:31.3]} 29... Ke7 {[%clk 0:00:35.5]} 30. f5 {[%clk 0:02:31.4]} 30...
f6 {[%clk 0:00:34.5]} 31. Nc8+ {[%clk 0:02:31]} 31... Kd7 {[%clk 0:00:32.7]} 32.
exf6 {[%clk 0:02:29.6]} 32... gxf6 {[%clk 0:00:32.5]} 33. Nxa7 {[%clk
0:02:21.7]} 33... Kc7 {[%clk 0:00:32.7]} 34. Kf3 {[%clk 0:02:11.2]} 34... Kb8
{[%clk 0:00:20.1]} 35. Nxc6+ {[%clk 0:02:11.1]} 35... Nxc6 {[%clk 0:00:19.3]}
36. Kg4 {[%clk 0:02:12]} 36... Nd4 {[%clk 0:00:18.5]} 37. Kf4 {[%clk 0:01:58.4]}
37... Kc7 {[%clk 0:00:18.8]} 38. g4 {[%clk 0:01:59.1]} 38... Kd6 {[%clk
0:00:18.7]} 39. Kg3 {[%clk 0:01:59.8]} 39... Ke5 {[%clk 0:00:18.7]} 40. Kh4
{[%clk 0:02:00.6]} 40... Kf4 {[%clk 0:00:19.1]} 41. Kh5 {[%clk 0:02:01.2]} 41...
Nc6 {[%clk 0:00:16.3]} 42. Kxh6 {[%clk 0:01:58.1]} 42... Ne5 {[%clk 0:00:15.8]}
43. Kg7 {[%clk 0:01:57.9]} 43... Nxg4 {[%clk 0:00:15.4]} 44. Kg6 {[%clk
0:01:57.2]} 44... Ke5 {[%clk 0:00:15.1]} 45. g3 {[%clk 0:01:56.7]} 45... Ne3
{[%clk 0:00:15.2]} 46. b4 {[%clk 0:01:56.1]} 46... Nxf5 {[%clk 0:00:15.3]} 47.
g4 {[%clk 0:01:55.2]} 47... Ne7+ {[%clk 0:00:15.4]} 48. Kf7 {[%clk 0:01:53.2]}
48... Nd5 {[%clk 0:00:15.6]} 49. a3 {[%clk 0:01:52.1]} 49... Ne3 {[%clk
0:00:15.8]} 50. a4 {[%clk 0:01:34.7]} 50... Nxg4 {[%clk 0:00:12.8]} 51. a5
{[%clk 0:01:35.4]} 51... Nh6+ {[%clk 0:00:12.8]} 52. Ke7 {[%clk 0:01:32]} 52...
Nf5+ {[%clk 0:00:12]} 53. Kd7 {[%clk 0:01:31.9]} 53... Nd6 {[%clk 0:00:12.3]}
54. Kc7 {[%clk 0:01:26.7]} 54... f5 {[%clk 0:00:12.2]} 55. b5 {[%clk 0:01:27.5]}
55... Nxb5+ {[%clk 0:00:07]} 56. Kxb7 {[%clk 0:01:28.2]} 56... Kd5 {[%clk
0:00:07.1]} 57. a6 {[%clk 0:01:27.9]} 57... f4 {[%clk 0:00:07.1]} 58. Kb6 {[%clk
0:01:27.7]} 58... Kc4 {[%clk 0:00:07.4]} 59. Ka5 {[%clk 0:01:28.1]} 59... f3
{[%clk 0:00:06.6]} 60. Kb6 {[%clk 0:01:28.7]} 60... f2 {[%clk 0:00:06.9]} 61.
Ka5 {[%clk 0:01:28.8]} 61... f1=Q {[%clk 0:00:06.7]} 62. Kb6 {[%clk 0:01:29.3]}
62... Qa1 {[%clk 0:00:07.3]} 63. Kb7 {[%clk 0:01:29.5]} 63... Qa5 {[%clk
0:00:07.4]} 64. Kb8 {[%clk 0:01:28.7]} 64... Qc7+ {[%clk 0:00:07.6]} 65. Ka8
{[%clk 0:01:28.9]} 65... Qa7# {[%clk 0:00:08.5]} 0-1

[Event "Late-Titled-Tuesday-Blitz-September-12-2023"]
[Site "Chess.com"]
[Date "2023.09.12"]
[Round "8"]
[White "KaydenTroffChess"]
[Black "ozates"]
[Result "1-0"]
[WhiteElo "2746"]
[BlackElo "2570"]
[TimeControl "180+1"]
[EndTime "15:23:11 PDT"]
[Termination "KaydenTroffChess won by checkmate"]

1. d4 {[%clk 0:03:00.9]} 1... Nf6 {[%clk 0:02:58]} 2. Nf3 {[%clk 0:03:00.1]}
2... d5 {[%clk 0:02:57.1]} 3. Bf4 {[%clk 0:03:00.1]} 3... c5 {[%clk 0:02:54.3]}
4. e3 {[%clk 0:02:58.9]} 4... Nc6 {[%clk 0:02:54.7]} 5. Nc3 {[%clk 0:02:58.2]}
5... a6 {[%clk 0:02:45.3]} 6. dxc5 {[%clk 0:02:56.7]} 6... e6 {[%clk 0:02:41.3]}
7. Na4 {[%clk 0:02:56.4]} 7... Bxc5 {[%clk 0:02:39.5]} 8. Nxc5 {[%clk
0:02:57.1]} 8... Qa5+ {[%clk 0:02:40]} 9. c3 {[%clk 0:02:57.7]} 9... Qxc5 {[%clk
0:02:40.7]} 10. Bd3 {[%clk 0:02:58.3]} 10... O-O {[%clk 0:02:37.1]} 11. O-O
{[%clk 0:02:57.8]} 11... Qe7 {[%clk 0:02:32.4]} 12. Ne5 {[%clk 0:02:57.5]} 12...
Nxe5 {[%clk 0:02:29.6]} 13. Bxe5 {[%clk 0:02:57]} 13... Nd7 {[%clk 0:02:25.1]}
14. Bg3 {[%clk 0:02:52.2]} 14... b5 {[%clk 0:02:18.4]} 15. e4 {[%clk 0:02:50.6]}
15... Bb7 {[%clk 0:02:17]} 16. e5 {[%clk 0:02:44.3]} 16... Rac8 {[%clk
0:02:07.5]} 17. Qh5 {[%clk 0:02:42.1]} 17... f5 {[%clk 0:01:38.2]} 18. exf6
{[%clk 0:02:38.3]} 18... Nxf6 {[%clk 0:01:38.7]} 19. Qg5 {[%clk 0:02:22.3]}
19... h6 {[%clk 0:01:21]} 20. Qe5 {[%clk 0:02:01.7]} 20... Ne4 {[%clk
0:01:19.1]} 21. Rfe1 {[%clk 0:01:46.6]} 21... Qf6 {[%clk 0:01:08.4]} 22. f3
{[%clk 0:01:43.9]} 22... Nxg3 {[%clk 0:00:56.1]} 23. hxg3 {[%clk 0:01:44.8]}
23... Qxe5 {[%clk 0:00:51.2]} 24. Rxe5 {[%clk 0:01:43.6]} 24... Rf6 {[%clk
0:00:51.6]} 25. a4 {[%clk 0:01:37.1]} 25... bxa4 {[%clk 0:00:46.3]} 26. Rxa4
{[%clk 0:01:36.9]} 26... Rc6 {[%clk 0:00:43.3]} 27. Rb4 {[%clk 0:01:32.3]} 27...
Bc8 {[%clk 0:00:42.4]} 28. Rb8 {[%clk 0:01:32.1]} 28... Kf7 {[%clk 0:00:42.3]}
29. g4 {[%clk 0:01:31]} 29... Ke7 {[%clk 0:00:36.7]} 30. g5 {[%clk 0:01:30.4]}
30... hxg5 {[%clk 0:00:37.1]} 31. Rxg5 {[%clk 0:01:31.3]} 31... Rf7 {[%clk
0:00:34.2]} 32. Ra8 {[%clk 0:01:24.1]} 32... Kd6 {[%clk 0:00:31.9]} 33. Rg6
{[%clk 0:01:18.1]} 33... Kc5 {[%clk 0:00:13.1]} 34. Rb8 {[%clk 0:01:03]} 34...
Rfc7 {[%clk 0:00:08.8]} 35. f4 {[%clk 0:00:59.4]} 35... Rb6 {[%clk 0:00:05.9]}
36. Rxb6 {[%clk 0:00:51.7]} 36... Kxb6 {[%clk 0:00:05.8]} 37. f5 {[%clk
0:00:51.7]} 37... Re7 {[%clk 0:00:04.9]} 38. fxe6 {[%clk 0:00:48.6]} 38... Rxe6
{[%clk 0:00:05.8]} 39. Rxg7 {[%clk 0:00:49]} 39... Re3 {[%clk 0:00:05.1]} 40.
Bf1 {[%clk 0:00:47.1]} 40... Bf5 {[%clk 0:00:05.1]} 41. Rf7 {[%clk 0:00:45.7]}
41... Bc2 {[%clk 0:00:02.8]} 42. Rf6+ {[%clk 0:00:45.4]} 42... Kc5 {[%clk
0:00:02.8]} 43. b4# {[%clk 0:00:37.4]} 1-0

[Event "Late-Titled-Tuesday-Blitz-September-12-2023"]
[Site "Chess.com"]
[Date "2023.09.12"]
[Round "8"]
[White "kacprekt"]
[Black "RETURNOFTHELAGGER"]
[Result "1-0"]
[WhiteElo "2517"]
[BlackElo "2588"]
[TimeControl "180+1"]
[EndTime "15:23:12 PDT"]
[Termination "kacprekt won by resignation"]

1. e4 {[%clk 0:02:55.6]} 1... c6 {[%clk 0:02:54.8]} 2. Nf3 {[%clk 0:02:54.1]}
2... d5 {[%clk 0:02:54.1]} 3. d3 {[%clk 0:02:54.3]} 3... g6 {[%clk 0:02:46.9]}
4. Nbd2 {[%clk 0:02:52.4]} 4... Bg7 {[%clk 0:02:46.8]} 5. g3 {[%clk 0:02:50.5]}
5... e5 {[%clk 0:02:45.7]} 6. Bg2 {[%clk 0:02:50.3]} 6... Ne7 {[%clk 0:02:45.3]}
7. O-O {[%clk 0:02:50.7]} 7... O-O {[%clk 0:02:45.6]} 8. c3 {[%clk 0:02:46.1]}
8... h6 {[%clk 0:02:43.2]} 9. Qc2 {[%clk 0:02:45.5]} 9... Nd7 {[%clk 0:02:41.9]}
10. a4 {[%clk 0:02:42]} 10... a5 {[%clk 0:02:40.3]} 11. b3 {[%clk 0:02:39.7]}
11... b6 {[%clk 0:02:36.6]} 12. Ba3 {[%clk 0:02:38.7]} 12... Ba6 {[%clk
0:02:29.1]} 13. Rfe1 {[%clk 0:02:36.7]} 13... Re8 {[%clk 0:02:27.9]} 14. Rad1
{[%clk 0:02:35.4]} 14... Qc7 {[%clk 0:02:25.3]} 15. d4 {[%clk 0:02:16.6]} 15...
exd4 {[%clk 0:01:53.4]} 16. Nxd4 {[%clk 0:02:16.1]} 16... Nf6 {[%clk 0:01:54.3]}
17. e5 {[%clk 0:02:05.8]} 17... Nh7 {[%clk 0:01:52.6]} 18. Bd6 {[%clk
0:02:02.2]} 18... Qd7 {[%clk 0:01:53]} 19. f4 {[%clk 0:01:57.6]} 19... Rac8
{[%clk 0:01:49]} 20. N2f3 {[%clk 0:01:55.9]} 20... c5 {[%clk 0:01:46.7]} 21. Ne2
{[%clk 0:01:51.7]} 21... Nf5 {[%clk 0:01:44.2]} 22. Bh3 {[%clk 0:01:41.9]} 22...
Ne3 {[%clk 0:01:25.5]} 23. Bxd7 {[%clk 0:01:41.4]} 23... Nxc2 {[%clk 0:01:26.4]}
24. Bxc8 {[%clk 0:01:29.8]} 24... Rxc8 {[%clk 0:01:25.8]} 25. Kf2 {[%clk
0:01:21.6]} 25... Nxe1 {[%clk 0:01:24.6]} 26. Nxe1 {[%clk 0:01:18.6]} 26... Bb7
{[%clk 0:01:16.4]} 27. Nc2 {[%clk 0:01:18.8]} 27... Nf8 {[%clk 0:01:15.4]} 28.
Ne3 {[%clk 0:01:18.2]} 28... c4 {[%clk 0:01:10.3]} 29. b4 {[%clk 0:01:07.8]}
29... axb4 {[%clk 0:01:08.8]} 30. Bxb4 {[%clk 0:01:05.1]} 30... Ra8 {[%clk
0:01:09]} 31. Nxd5 {[%clk 0:01:00.3]} 31... Rxa4 {[%clk 0:01:05.2]} 32. Nxb6
{[%clk 0:00:56.3]} 32... Ra2 {[%clk 0:01:05.1]} 33. Ke3 {[%clk 0:00:48.3]} 33...
Ra6 {[%clk 0:00:56.3]} 34. Nxc4 {[%clk 0:00:46.4]} 34... Rc6 {[%clk 0:00:53.1]}
35. Na5 {[%clk 0:00:45.6]} 35... Rc7 {[%clk 0:00:52.9]} 36. Rd8 {[%clk
0:00:34.5]} 36... Ba6 {[%clk 0:00:45.8]} 37. Nd4 {[%clk 0:00:34.1]} 37... Rd7
{[%clk 0:00:40.3]} 38. Ra8 {[%clk 0:00:30.1]} 38... Bf1 {[%clk 0:00:31.8]} 39.
e6 {[%clk 0:00:26]} 39... Rc7 {[%clk 0:00:24.5]} 40. e7 {[%clk 0:00:23.4]} 40...
Bg2 {[%clk 0:00:23.8]} 41. e8=Q {[%clk 0:00:22.4]} 1-0

[Event "Late-Titled-Tuesday-Blitz-September-12-2023"]
[Site "Chess.com"]
[Date "2023.09.12"]
[Round "8"]
[White "chosenpr"]
[Black "ManuMunoz01"]
[Result "1-0"]
[WhiteElo "2378"]
[BlackElo "2238"]
[TimeControl "180+1"]
[EndTime "15:23:13 PDT"]
[Termination "chosenpr won on time"]

1. d4 {[%clk 0:02:39.9]} 1... d5 {[%clk 0:02:57.5]} 2. c4 {[%clk 0:02:38.4]}
2... c6 {[%clk 0:02:54]} 3. Nf3 {[%clk 0:02:36.8]} 3... Bf5 {[%clk 0:02:46.8]}
4. Nc3 {[%clk 0:02:34.1]} 4... e6 {[%clk 0:02:45.4]} 5. Qb3 {[%clk 0:02:32.3]}
5... Bd6 {[%clk 0:02:42.6]} 6. Qxb7 {[%clk 0:02:28.8]} 6... Nd7 {[%clk
0:02:34.2]} 7. Qxc6 {[%clk 0:02:28.5]} 7... Bb4 {[%clk 0:02:15.1]} 8. Ne5 {[%clk
0:02:12.5]} 8... Rc8 {[%clk 0:01:56]} 9. Qa4 {[%clk 0:02:11]} 9... a5 {[%clk
0:01:49.1]} 10. Bd2 {[%clk 0:01:45]} 10... Nf6 {[%clk 0:01:11.3]} 11. cxd5
{[%clk 0:01:42]} 11... exd5 {[%clk 0:01:04.6]} 12. Nxd7 {[%clk 0:01:40]} 12...
Bxd7 {[%clk 0:01:02.4]} 13. Qd1 {[%clk 0:01:35]} 13... O-O {[%clk 0:01:01.8]}
14. e3 {[%clk 0:01:34.9]} 14... Bf5 {[%clk 0:01:00.7]} 15. Be2 {[%clk
0:01:34.4]} 15... Bxc3 {[%clk 0:00:44.2]} 16. Bxc3 {[%clk 0:01:32]} 16... Ne4
{[%clk 0:00:44.1]} 17. Rc1 {[%clk 0:01:30.3]} 17... Nxc3 {[%clk 0:00:34]} 18.
Rxc3 {[%clk 0:01:29.2]} 18... Rxc3 {[%clk 0:00:32.8]} 19. bxc3 {[%clk
0:01:30.1]} 19... Qb6 {[%clk 0:00:30.7]} 20. O-O {[%clk 0:01:21.8]} 20... Rc8
{[%clk 0:00:30.2]} 21. Qd2 {[%clk 0:01:21]} 21... Qc6 {[%clk 0:00:20.5]} 22. Rc1
{[%clk 0:01:17.7]} 22... Qa4 {[%clk 0:00:20.3]} 23. Qb2 {[%clk 0:00:56.3]} 23...
h6 {[%clk 0:00:18.5]} 24. h3 {[%clk 0:00:55.7]} 24... Qc6 {[%clk 0:00:16.2]} 25.
Bb5 {[%clk 0:00:55]} 25... Qb6 {[%clk 0:00:13.8]} 26. a4 {[%clk 0:00:55.6]}
26... Bd7 {[%clk 0:00:12.4]} 27. Rb1 {[%clk 0:00:55.4]} 27... Rb8 {[%clk
0:00:12.4]} 28. Qe2 {[%clk 0:00:53.9]} 28... Qc7 {[%clk 0:00:11.3]} 29. Qd3
{[%clk 0:00:51]} 29... Be6 {[%clk 0:00:07.7]} 30. Rc1 {[%clk 0:00:49.2]} 30...
Qc8 {[%clk 0:00:04.7]} 31. c4 {[%clk 0:00:48.6]} 31... dxc4 {[%clk 0:00:04.7]}
32. Bxc4 {[%clk 0:00:47.2]} 32... Rb4 {[%clk 0:00:04.5]} 33. d5 {[%clk
0:00:36.4]} 33... Bd7 {[%clk 0:00:04]} 34. Rc3 {[%clk 0:00:20.6]} 1-0

[Event "Late-Titled-Tuesday-Blitz-September-12-2023"]
[Site "Chess.com"]
[Date "2023.09.12"]
[Round "8"]
[White "Athanasios2"]
[Black "PabloZarnicki"]
[Result "1-0"]
[WhiteElo "2705"]
[BlackElo "2511"]
[TimeControl "180+1"]
[EndTime "15:23:18 PDT"]
[Termination "Athanasios2 won on time"]

1. Nf3 {[%clk 0:03:00.9]} 1... Nf6 {[%clk 0:02:58.5]} 2. c4 {[%clk 0:03:01.3]}
2... g6 {[%clk 0:02:54.7]} 3. Nc3 {[%clk 0:03:01.6]} 3... Bg7 {[%clk 0:02:55.5]}
4. g3 {[%clk 0:03:02.1]} 4... O-O {[%clk 0:02:55]} 5. Bg2 {[%clk 0:03:02.6]}
5... c5 {[%clk 0:02:52.7]} 6. O-O {[%clk 0:03:02.1]} 6... Nc6 {[%clk 0:02:53.3]}
7. d4 {[%clk 0:03:02.4]} 7... Nxd4 {[%clk 0:02:53.6]} 8. Nxd4 {[%clk 0:03:03.3]}
8... cxd4 {[%clk 0:02:54.4]} 9. Qxd4 {[%clk 0:03:03.2]} 9... d6 {[%clk
0:02:55.3]} 10. Qd3 {[%clk 0:02:57.9]} 10... a6 {[%clk 0:02:54.9]} 11. b3 {[%clk
0:02:57.8]} 11... Rb8 {[%clk 0:02:52.1]} 12. Bb2 {[%clk 0:02:57.5]} 12... Bf5
{[%clk 0:02:52.1]} 13. e4 {[%clk 0:02:56.3]} 13... Bd7 {[%clk 0:02:51.7]} 14.
Rfd1 {[%clk 0:02:53.2]} 14... Bc6 {[%clk 0:02:40]} 15. Rac1 {[%clk 0:02:46.6]}
15... Nd7 {[%clk 0:02:34.9]} 16. Qd2 {[%clk 0:02:43.5]} 16... b5 {[%clk
0:02:32.8]} 17. cxb5 {[%clk 0:02:40.7]} 17... axb5 {[%clk 0:02:33.7]} 18. Ne2
{[%clk 0:02:39.8]} 18... Ba8 {[%clk 0:02:21.9]} 19. Bxg7 {[%clk 0:02:38.8]}
19... Kxg7 {[%clk 0:02:22.8]} 20. Nd4 {[%clk 0:02:37]} 20... Qb6 {[%clk
0:02:12.4]} 21. Qc3 {[%clk 0:02:21.7]} 21... Kg8 {[%clk 0:02:09]} 22. Qc7 {[%clk
0:02:01.6]} 22... Rfd8 {[%clk 0:01:48.9]} 23. Qc2 {[%clk 0:01:49.1]} 23... b4
{[%clk 0:01:43.6]} 24. Qd2 {[%clk 0:01:46.8]} 24... Rbc8 {[%clk 0:01:40.6]} 25.
h4 {[%clk 0:01:37.4]} 25... Bb7 {[%clk 0:01:29.6]} 26. Nc2 {[%clk 0:01:32.6]}
26... Nc5 {[%clk 0:01:13.6]} 27. Qe1 {[%clk 0:01:16.4]} 27... Rb8 {[%clk
0:00:51.1]} 28. Ne3 {[%clk 0:00:57.4]} 28... Qa6 {[%clk 0:00:30.1]} 29. Rc4
{[%clk 0:00:33]} 29... Qxa2 {[%clk 0:00:26.7]} 30. Rxb4 {[%clk 0:00:33.7]} 30...
Ba8 {[%clk 0:00:20.9]} 31. h5 {[%clk 0:00:22]} 31... Rxb4 {[%clk 0:00:16.1]} 32.
Qxb4 {[%clk 0:00:22.9]} 32... Qxb3 {[%clk 0:00:15.7]} 33. Qa5 {[%clk 0:00:22.8]}
33... Rb8 {[%clk 0:00:05.4]} 34. Qc7 {[%clk 0:00:19.4]} 34... Qb7 {[%clk
0:00:04.2]} 35. Qa5 {[%clk 0:00:18.6]} 1-0